bitfinex/quotes_ETHUSD_20250223
["timestamp","ask_amount","ask_price","bid_price","bid_amount"]
[1740321456897,5.24,2796.5,2795.2,0.8022]
[1740321457086,5.24,2796.9,2795.3,0.8022]
[1740321457292,5.24,2796.9,2795.3,0.86071928]
[1740321460608,5.24,2796.9,2795.3,0.8022]
[1740321460847,0.5534,2796.8,2795.3,0.8022]
[1740321460979,5.24,2796.9,2795.5,0.8022]
[1740321462917,5.24,2797.3,2795.5,0.8022]
[1740321463086,5.24,2797.5,2795.7,0.8022]
[1740321463425,0.5532,2797.4,2795.9,0.8022]
[1740321467650,0.8187,2797.3,2795.9,0.8022]
[1740321467859,6.0587,2797.3,2795.9,0.8022]
[1740321468197,0.55,2797.1,2795.9,0.8022]
[1740321468510,5.24,2797.0,2795.9,0.8022]
[1740321468697,0.579,2796.9,2795.9,0.8022]
[1740321469530,0.32822287,2796.8,2795.9,0.8022]
[1740321469736,0.291,2796.7,2795.9,0.8022]
[1740321470029,5.24,2796.6,2795.9,0.8022]
[1740321470235,0.7758,2796.5,2794.8,0.7608]
[1740321470440,5.24,2796.4,2794.8,0.7608]
[1740321470944,3.0,2796.3,2794.8,0.7608]
[1740321471155,5.79,2796.2,2794.8,0.7608]
[1740321471312,0.7758,2795.9,2794.8,0.7608]
[1740321471517,5.53,2795.8,2794.8,0.7608]
[1740321471749,0.63058,2795.7,2794.8,0.7608]
[1740321472404,0.32822287,2795.6,2794.8,0.7608]
[1740321474724,0.61822287,2795.6,2794.8,0.7608]
[1740321474928,0.32822287,2795.6,2794.8,0.7608]
[1740321478244,5.24,2795.8,2794.8,0.7608]
[1740321479425,5.24,2796.4,2795.0,0.7608]
[1740321479929,5.24,2796.4,2795.2,0.7608]
[1740321481034,0.7758,2796.6,2795.2,0.7608]
[1740321481234,5.24,2796.5,2795.2,0.7608]
[1740321481541,3.0,2796.4,2795.2,0.7608]
[1740321481746,0.824,2796.3,2795.2,0.7608]
[1740321483048,0.824,2796.3,2794.2,5.679]
[1740321483049,3.55,2796.1,2794.2,0.7608]
[1740321483224,0.55,2795.9,2794.2,0.7608]
[1740321484655,0.7865,2795.8,2794.2,0.7608]
[1740321485421,0.55,2795.7,2794.2,0.7608]
[1740321485634,5.24,2795.6,2794.2,0.7608]
[1740321485852,0.55690699,2795.5,2794.2,0.7608]
[1740321486873,0.7865,2795.3,2794.2,0.7608]
[1740321487184,0.7865,2795.3,2794.1,0.005]
[1740321487185,0.55,2795.0,2794.1,0.005]
[1740321487373,5.529,2794.9,2794.1,0.005]
[1740321487921,0.7865,2794.7,2794.1,0.005]
[1740321488226,5.84265,2794.6,2794.1,0.005]
[1740321488444,0.55,2794.5,2794.1,0.005]
[1740321488669,5.84265,2794.6,2794.1,0.005]
[1740321488826,0.288,2794.4,2794.1,0.005]
[1740321489025,5.24,2794.3,2794.1,0.005]
[1740321489241,0.5528,2794.2,2794.1,0.005]
[1740321489974,5.24,2794.3,2794.1,0.005]
[1740321490623,5.24,2794.3,2794.2,0.7828]
[1740321492162,5.24,2794.3,2794.1,0.005]
[1740321492455,6.0123,2794.8,2794.1,0.005]
[1740321492628,5.24,2794.8,2794.1,0.005]
[1740321492828,0.5529,2794.7,2794.1,0.005]
[1740321493564,5.24,2794.8,2794.2,0.7828]
[1740321494062,5.24,2794.8,2794.1,0.005]
[1740321496471,5.24,2794.9,2794.2,0.7828]
[1740321496670,0.289,2795.2,2794.2,0.7828]
[1740321496671,5.24,2795.1,2794.2,0.7828]
[1740321503160,5.24,2795.4,2794.2,0.7828]
[1740321503359,5.24,2796.0,2794.2,0.7828]
[1740321503564,5.7928,2796.0,2794.4,0.8222]
[1740321503973,5.24,2796.0,2794.4,0.8222]
[1740321504174,5.24,2796.0,2794.6,0.8222]
[1740321505559,5.24,2796.2,2794.8,0.8222]
[1740321505771,5.24,2796.5,2794.8,0.8222]
[1740321506992,5.24,2796.6,2794.8,0.8222]
[1740321507293,5.24,2797.2,2795.9,0.8222]
[1740321507590,0.29,2797.6,2796.0,0.8222]
[1740321507754,5.24,2797.5,2796.0,0.8222]
[1740321507957,0.553,2797.4,2796.0,0.8222]
[1740321509383,5.24,2797.3,2796.0,0.8222]
[1740321513797,5.24,2797.6,2796.6,0.7849]
[1740321513975,5.24,2798.1,2796.6,0.7849]
[1740321514175,0.5529,2798.0,2796.6,0.7849]
[1740321518278,5.24,2797.9,2796.6,0.7849]
[1740321519462,5.24,2798.0,2796.6,0.7849]
[1740321520303,0.7824,2797.9,2796.6,0.7849]
[1740321520603,0.60224,2797.8,2796.6,0.7849]
[1740321520780,0.7824,2797.9,2796.6,0.7849]
[1740321521304,5.24,2798.0,2796.6,0.7849]
[1740321528003,5.24,2798.0,2796.8,0.7533]
[1740321528582,5.24,2798.0,2796.9,0.55]
[1740321528877,5.526,2798.7,2797.1,0.753]
[1740321529074,0.8203,2798.5,2797.1,0.753]
[1740321529506,5.24,2798.4,2797.1,0.753]
[1740321533313,7.68764098,2798.4,2797.1,0.753]
[1740321534721,0.8203,2798.3,2797.1,0.753]
[1740321534882,0.286,2798.2,2797.1,0.753]
[1740321535083,3.0,2798.0,2797.1,0.753]
[1740321535302,6.4777641,2797.9,2797.1,0.753]
[1740321537189,4.3703,2797.7,2795.9,0.753]
[1740321537404,0.55,2797.5,2795.9,0.753]
[1740321538294,3.55,2797.5,2795.9,0.753]
[1740321538487,0.879,2797.4,2795.9,0.753]
[1740321538819,0.285,2797.3,2795.9,0.753]
[1740321539385,0.879,2797.4,2795.9,0.753]
[1740321539617,0.285,2797.4,2795.9,0.753]
[1740321542094,5.24,2797.3,2795.9,0.753]
[1740321547538,3.0,2797.1,2795.9,0.753]
[1740321547692,5.24,2797.0,2795.9,0.753]
[1740321550600,5.24,2797.5,2795.8,0.55]
[1740321550802,0.524,2797.5,2796.2,0.27053494]
[1740321551063,5.24,2797.4,2796.3,0.8096]
[1740321553238,5.24,2797.4,2796.8,0.8096]
[1740321553415,5.24,2797.8,2796.8,0.8096]
[1740321558355,5.24,2797.9,2797.1,0.8096]
[1740321558586,5.24,2797.9,2797.4,0.8096]
[1740321558762,0.98278009,2799.2,2797.6,4.12816903]
[1740321558763,5.24,2798.6,2797.6,4.12816903]
[1740321558922,5.24,2798.7,2797.7,0.8096]
[1740321559120,5.24,2799.1,2798.0,0.8096]
[1740321559447,5.24,2799.1,2798.3,0.8096]
[1740321568133,0.18501347,2799.1,2798.3,0.8096]
[1740321568864,5.24,2799.0,2798.3,0.8096]
[1740321569433,0.283,2799.1,2798.3,0.8096]
[1740321569635,0.7241169,2799.1,2798.3,0.8096]
[1740321570456,0.283,2799.1,2798.3,0.8096]
[1740321570769,5.24,2799.0,2798.3,0.8096]
[1740321571871,5.24,2799.0,2798.6,3.29045676]
[1740321572167,5.24,2799.0,2798.7,0.8227]
[1740321572567,5.24,2799.7,2798.7,0.8227]
[1740321572772,0.5523,2799.6,2798.7,0.8227]
[1740321573584,5.24,2799.5,2798.7,0.8227]
[1740321576979,3.29045676,2799.3,2798.7,0.8227]
[1740321577296,3.84045676,2799.0,2797.8,0.8227]
[1740321577458,8.523,2798.9,2797.8,0.8227]
[1740321577657,1.23634568,2798.8,2797.8,0.8227]
[1740321579280,3.7679,2798.6,2797.8,0.8227]
[1740321579480,3.55,2798.3,2797.5,0.8227]
[1740321579650,5.24,2798.2,2797.5,0.8227]
[1740321580081,3.0,2798.1,2797.5,0.8227]
[1740321580304,1.107,2798.0,2797.5,0.8227]
[1740321580448,0.55,2797.9,2796.5,0.8227]
[1740321580648,5.24,2797.8,2796.5,3.0]
[1740321580945,5.24,2797.8,2796.6,0.8227]
[1740321581145,0.579,2797.7,2796.8,0.8227]
[1740321583618,5.24,2797.6,2796.8,0.8227]
[1740321584950,3.29045676,2797.2,2796.8,0.8227]
[1740321585191,5.24,2797.1,2795.6,0.7534]
[1740321586601,3.29045676,2796.9,2795.6,0.7534]
[1740321586801,0.38404568,2796.8,2795.6,0.7534]
[1740321587700,0.66604568,2796.8,2795.6,0.7534]
[1740321589101,3.0,2797.0,2795.6,0.7534]
[1740321589407,0.281,2796.9,2795.6,0.7534]
[1740321591700,5.521,2797.1,2795.6,0.7534]
[1740321592572,5.24,2797.0,2795.6,0.7534]
[1740321593406,5.24,2797.0,2795.9,3.7526]
[1740321593612,5.24,2797.0,2796.1,0.7526]
[1740321593957,5.521,2797.3,2796.1,0.7526]
[1740321596650,5.24,2797.3,2796.2,4.88435628]
[1740321596858,5.24,2797.6,2796.4,0.7526]
[1740321601039,4.13175628,2797.4,2796.4,0.7526]
[1740321601235,4.22737563,2797.3,2796.4,0.7526]
[1740321601427,4.13175628,2797.1,2796.4,0.7526]
[1740321602234,5.24,2797.1,2796.4,0.7526]
[1740321602739,5.24,2797.5,2796.4,0.7526]
[1740321605730,5.24,2797.8,2796.6,3.0]
[1740321605912,5.24,2797.8,2796.8,0.7893]
[1740321606246,3.0,2798.2,2796.8,0.7893]
[1740321607341,5.24,2798.1,2796.8,0.7893]
[1740321607744,5.24,2798.1,2797.0,0.7893]
[1740321613346,5.24,2798.2,2797.0,0.7893]
[1740321614144,0.524,2798.1,2797.0,0.7893]
[1740321616560,6.81769662,2798.1,2797.0,0.7893]
[1740321617062,7.60739662,2798.1,2797.0,0.7893]
[1740321617266,0.55,2798.0,2797.0,0.7893]
[1740321617767,7.79245185,2798.1,2797.0,0.7893]
[1740321617966,1.30324519,2798.0,2797.0,0.7893]
[1740321619357,5.24,2797.9,2797.0,0.7893]
[1740321625301,5.24,2798.1,2797.0,0.7893]
[1740321627051,3.0,2798.0,2797.0,0.7893]
[1740321627446,3.29369662,2797.9,2797.0,0.7893]
[1740321627648,0.62936966,2797.8,2797.0,0.7893]
[1740321627952,5.24,2797.7,2797.0,0.7893]
[1740321631288,5.24,2797.8,2797.0,0.7893]
[1740321632369,5.24,2797.8,2797.2,0.796]
[1740321632784,5.24,2797.8,2797.3,0.06469563]
[1740321632971,5.24,2797.8,2797.4,0.796]
[1740321633356,5.24,2797.8,2797.5,0.06469563]
[1740321634485,5.24,2797.8,2796.3,0.796]
[1740321634486,9.36599662,2797.7,2796.3,0.796]
[1740321634691,3.29369662,2796.9,2796.3,0.796]
[1740321634869,5.24,2796.8,2796.3,0.796]
[1740321635201,3.29369662,2796.6,2795.3,0.796]
[1740321635410,5.59716966,2796.5,2795.3,0.796]
[1740321635745,5.59716966,2796.5,2795.5,0.796]
[1740321635976,5.59716966,2796.5,2795.7,0.796]
[1740321636184,5.24,2796.5,2795.7,0.796]
[1740321636547,5.24,2796.5,2795.8,0.05177083]
[1740321636774,5.24,2796.5,2795.9,0.796]
[1740321636969,6.56494304,2797.1,2795.9,0.796]
[1740321636970,5.24,2796.7,2795.9,0.796]
[1740321637182,5.24,2796.7,2796.1,0.796]
[1740321637354,0.524,2796.6,2796.1,0.796]
[1740321637560,5.24,2796.7,2796.1,0.796]
[1740321637966,5.24,2796.7,2796.2,0.05347087]
[1740321638367,5.24,2796.7,2796.1,0.796]
[1740321638769,5.24,2796.7,2796.2,0.05347087]
[1740321639063,5.24,2796.7,2796.1,0.796]
[1740321639396,5.24,2796.7,2796.2,0.05320032]
[1740321639397,0.85336966,2796.6,2796.2,0.05320032]
[1740321639691,0.85336966,2796.6,2796.1,0.796]
[1740321639886,0.85336966,2796.6,2796.2,0.05320032]
[1740321640061,6.09336966,2796.6,2796.1,0.796]
[1740321640253,6.09336966,2796.6,2796.2,0.05320032]
[1740321640454,6.09336966,2796.6,2796.1,0.796]
[1740321640654,6.09336966,2796.6,2796.2,0.05320032]
[1740321640895,6.09336966,2796.6,2796.1,0.796]
[1740321641063,6.09336966,2796.6,2796.2,0.05320032]
[1740321641266,6.09336966,2796.6,2796.1,0.796]
[1740321641451,6.09336966,2796.6,2796.2,0.05320032]
[1740321641656,6.09336966,2796.6,2796.1,0.796]
[1740321641995,5.24,2796.6,2796.2,0.05320032]
[1740321642368,5.24,2796.6,2796.1,0.796]
[1740321642566,5.24,2797.0,2796.1,0.796]
[1740321642894,5.24,2797.3,2796.3,0.796]
[1740321643091,5.24,2797.3,2796.5,0.796]
[1740321643593,5.24,2797.3,2796.6,0.05321964]
[1740321643894,5.24,2797.5,2796.6,0.05321964]
[1740321649762,3.29369662,2797.4,2796.6,0.05321964]
[1740321650004,3.29369662,2797.1,2796.6,0.05321964]
[1740321650218,0.32936966,2797.0,2796.6,0.05321964]
[1740321650498,0.32936966,2797.0,2796.5,0.796]
[1740321651263,3.29369662,2797.3,2796.5,0.796]
[1740321654991,5.24,2797.2,2796.5,0.796]
[1740321658071,4.10059662,2797.0,2795.4,0.8296]
[1740321658370,5.24,2796.9,2795.6,0.8296]
[1740321658593,0.96165966,2796.8,2795.6,0.8296]
[1740321658803,0.96165966,2796.8,2795.8,0.8296]
[1740321659509,0.96165966,2796.8,2796.0,0.8296]
[1740321659684,5.24,2796.7,2796.0,0.8296]
[1740321661502,5.24,2796.7,2796.1,0.05028525]
[1740321661683,5.24,2796.7,2796.2,0.8296]
[1740321661885,5.24,2796.7,2796.3,0.05084553]
[1740321662098,5.24,2796.7,2796.2,0.8296]
[1740321662403,5.24,2797.2,2796.4,0.8296]
[1740321662788,5.24,2797.5,2796.4,0.8296]
[1740321663106,5.24,2797.5,2796.2,3.0]
[1740321663107,5.24,2797.7,2796.6,0.8296]
[1740321663274,0.90576966,2797.6,2796.7,0.05056539]
[1740321663604,0.90576966,2797.6,2796.7,0.8296]
[1740321663828,0.90576966,2797.6,2796.8,0.82986539]
[1740321664101,0.90576966,2797.6,2796.8,0.7793]
[1740321664809,5.24,2797.7,2796.8,0.7793]
[1740321665109,3.29369662,2797.3,2796.9,0.05056539]
[1740321665314,3.29369662,2797.3,2796.8,0.7793]
[1740321669816,5.24,2797.2,2796.8,0.7793]
[1740321670018,0.85336966,2797.1,2796.8,0.7793]
[1740321674639,3.29369662,2796.9,2795.6,0.7652]
[1740321674812,4.10569662,2796.5,2795.6,0.7652]
[1740321675114,3.0,2796.4,2795.6,0.7652]
[1740321675321,0.73806966,2796.3,2795.6,0.7652]
[1740321675624,5.97806966,2796.3,2795.6,0.7652]
[1740321679184,3.55,2795.8,2794.6,0.7652]
[1740321679490,5.24,2795.7,2794.8,0.7652]
[1740321679687,6.47456966,2795.7,2794.8,0.7652]
[1740321679898,6.47456966,2795.7,2794.9,0.81032171]
[1740321680389,5.24,2795.7,2794.9,0.81032171]
[1740321681599,5.24,2795.7,2794.9,0.7652]
[1740321682727,5.24,2795.7,2795.0,0.04610677]
[1740321682945,5.24,2795.7,2795.1,0.7652]
[1740321683093,5.24,2795.7,2795.2,0.04743941]
[1740321683733,5.24,2795.7,2795.3,0.7801]
[1740321685792,5.24,2795.7,2795.4,0.04747805]
[1740321687628,3.0,2796.4,2795.4,0.04747805]
[1740321687824,6.064,2796.3,2795.4,0.04747805]
[1740321688133,6.064,2796.3,2795.5,0.04747805]
[1740321688306,6.064,2796.3,2795.3,0.7801]
[1740321688508,6.064,2796.3,2795.4,0.04747805]
[1740321689635,6.064,2796.3,2795.3,0.7801]
[1740321689927,0.9064,2796.2,2795.4,0.04725587]
[1740321691343,0.8195,2796.1,2795.4,0.04725587]
[1740321691499,0.9064,2796.2,2795.3,0.7801]
[1740321691829,0.9064,2796.2,2795.4,0.04724621]
[1740321692030,0.9064,2796.2,2795.5,0.7783]
[1740321692533,5.24,2796.1,2795.5,0.7783]
[1740321692825,5.24,2797.0,2795.7,0.7783]
[1740321693030,5.24,2797.1,2795.8,0.7783]
[1740321693214,5.24,2797.1,2796.0,3.0]
[1740321693419,5.24,2797.1,2796.1,0.7783]
[1740321693724,5.24,2797.1,2796.1,0.82522748]
[1740321695826,5.24,2797.4,2796.1,0.82522748]
[1740321696035,8.53369662,2797.4,2796.2,0.7783]
[1740321696333,0.5515,2797.3,2796.3,0.0447356]
[1740321696490,5.24,2797.2,2796.3,0.0447356]
[1740321696932,5.24,2797.2,2796.4,0.7783]
[1740321705104,3.29369662,2796.8,2795.4,0.69900269]
[1740321705308,3.29369662,2796.5,2795.5,0.84215153]
[1740321705607,5.24,2796.4,2795.5,0.84215153]
[1740321706037,5.24,2796.4,2795.5,0.7988]
[1740321706241,5.24,2796.4,2795.7,0.7988]
[1740321706441,0.524,2796.3,2795.7,0.7988]
[1740321707343,0.524,2796.3,2795.8,0.04354459]
[1740321707542,0.524,2796.3,2795.7,0.7988]
[1740321707739,5.24,2796.4,2795.8,0.04354459]
[1740321707940,5.24,2796.4,2795.9,0.7988]
[1740321711125,5.24,2796.8,2795.9,0.7988]
[1740321712652,0.55,2796.7,2795.9,0.7988]
[1740321713960,5.24,2796.8,2795.9,0.7988]
[1740321714262,0.524,2796.7,2795.9,0.7988]
[1740321717362,5.24,2796.6,2795.9,0.7988]
[1740321718947,3.29369662,2796.4,2795.9,0.7988]
[1740321719147,4.06799662,2796.4,2795.9,0.7988]
[1740321719651,4.06799662,2796.4,2794.7,3.29369662]
[1740321719652,0.55,2796.3,2794.7,3.29369662]
[1740321719856,5.70179966,2796.2,2795.5,0.8235]
[1740321720054,5.97379966,2796.2,2795.5,0.8235]
[1740321720362,9.26749628,2796.2,2795.6,0.04460661]
[1740321720571,9.26749628,2796.2,2795.5,0.8235]
[1740321720744,5.97379966,2796.2,2795.6,0.04460661]
[1740321720931,5.97379966,2796.2,2795.5,0.8235]
[1740321721126,5.512,2796.2,2795.6,0.04460661]
[1740321721342,5.24,2796.2,2795.7,0.8235]
[1740321723268,3.0,2796.4,2795.7,0.8235]
[1740321723466,5.24,2796.5,2795.7,0.8235]
[1740321725841,3.55,2796.4,2795.7,0.8235]
[1740321726168,0.68436966,2796.3,2795.7,0.8235]
[1740321726671,0.68436966,2796.3,2794.8,0.27472113]
[1740321726672,3.0,2796.1,2794.6,0.7566]
[1740321726859,3.55,2795.8,2794.6,0.7566]
[1740321727164,3.55,2795.6,2794.6,0.7566]
[1740321727790,3.55,2795.3,2794.6,0.7566]
[1740321727978,3.55,2795.3,2794.1,0.005]
[1740321727979,3.29369662,2795.1,2794.2,0.7566]
[1740321728155,3.29369662,2795.1,2794.3,0.04171082]
[1740321728360,3.29369662,2795.1,2794.2,0.7566]
[1740321728560,3.29369662,2795.1,2794.3,0.04171082]
[1740321728882,3.29369662,2795.1,2794.2,0.7566]
[1740321729077,6.96666966,2795.2,2794.2,0.7566]
[1740321729078,5.24,2795.2,2794.2,0.7566]
[1740321729292,5.24,2795.2,2794.3,0.04171082]
[1740321729592,3.84369662,2795.1,2794.4,0.7812]
[1740321730899,3.0,2795.2,2794.4,0.7812]
[1740321731433,5.24,2795.3,2794.5,0.04293791]
[1740321731702,5.24,2795.3,2794.6,0.7812]
[1740321731863,5.7912,2795.3,2794.6,0.7812]
[1740321732375,5.24,2795.3,2794.6,0.7812]
[1740321732575,5.24,2795.6,2794.8,0.7812]
[1740321732776,5.24,2795.6,2794.9,0.04293791]
[1740321732979,5.24,2795.8,2795.0,0.7812]
[1740321733174,6.14702949,2795.8,2795.0,0.7812]
[1740321733384,6.14702949,2795.8,2795.1,0.04293791]
[1740321733891,5.24,2795.8,2795.2,0.7812]
[1740321734275,5.24,2795.8,2795.3,0.04273493]
[1740321734698,5.24,2795.8,2795.2,0.7812]
[1740321735000,5.24,2795.8,2795.3,0.04273493]
[1740321735163,5.24,2795.8,2795.2,0.7812]
[1740321735369,5.24,2795.8,2795.3,0.04273493]
[1740321735606,6.12066966,2795.8,2795.2,0.7812]
[1740321735895,6.12066966,2795.8,2795.3,0.04273493]
[1740321736270,6.12066966,2795.8,2795.2,0.7812]
[1740321736689,3.29369662,2795.7,2795.2,0.7812]
[1740321736971,0.55,2795.6,2794.2,0.7812]
[1740321737306,5.24,2795.5,2794.4,0.7812]
[1740321737599,3.29369662,2795.4,2794.5,0.04300526]
[1740321737803,0.55,2795.2,2794.4,0.7812]
[1740321739698,0.55,2795.0,2794.4,0.7812]
[1740321739903,0.274,2795.1,2794.4,0.7812]
[1740321739904,5.24,2794.9,2794.4,0.7812]
[1740321740196,5.7914,2794.9,2794.4,0.7812]
[1740321742089,5.24,2794.9,2794.4,0.7812]
[1740321742398,5.24,2794.9,2794.5,0.04320818]
[1740321742570,5.24,2794.9,2794.6,0.7812]
[1740321742771,5.24,2794.9,2794.7,0.0436721]
[1740321744202,5.24,2795.5,2794.7,0.0436721]
[1740321744399,0.62364366,2795.4,2794.7,0.0436721]
[1740321745702,3.84369662,2795.2,2794.7,0.0436721]
[1740321746084,0.55,2795.0,2794.1,0.005]
[1740321746281,3.56669662,2794.9,2794.1,0.005]
[1740321746487,3.56669662,2794.9,2794.2,0.04072689]
[1740321746682,5.79,2794.8,2794.2,0.04072689]
[1740321746981,0.93566966,2794.7,2794.1,0.005]
[1740321747186,0.93566966,2794.7,2794.2,0.7797]
[1740321747381,0.93566966,2794.7,2794.3,0.04072689]
[1740321747581,0.93566966,2794.7,2794.2,0.7797]
[1740321747770,0.93566966,2794.7,2794.3,0.04072689]
[1740321747973,0.93566966,2794.7,2794.2,0.7797]
[1740321748202,0.93566966,2794.7,2794.3,0.04072689]
[1740321748409,0.93566966,2794.7,2794.2,0.7797]
[1740321748611,3.769,2794.6,2794.2,0.7797]
[1740321748782,0.93566966,2794.7,2794.3,0.04072689]
[1740321748990,0.93566966,2794.7,2794.2,0.7797]
[1740321749191,0.93566966,2794.7,2794.3,0.04072689]
[1740321749407,0.93566966,2794.7,2794.2,0.7297]
[1740321749577,0.93566966,2794.7,2794.3,0.04129693]
[1740321749777,0.93566966,2794.7,2794.2,0.7297]
[1740321750016,5.24,2794.8,2794.3,0.04129693]
[1740321750679,5.24,2794.8,2794.1,0.005]
[1740321750884,5.24,2794.8,2794.4,0.04129693]
[1740321751084,5.24,2794.8,2794.1,0.005]
[1740321751315,5.24,2794.8,2794.5,0.04129693]
[1740321751628,5.24,2794.8,2794.6,0.04129693]
[1740321751793,5.24,2794.8,2794.1,0.005]
[1740321751997,5.24,2794.8,2794.2,0.04104569]
[1740321752202,5.24,2794.8,2794.3,0.7916]
[1740321752622,5.24,2794.8,2794.4,0.04104569]
[1740321752781,5.24,2794.8,2794.5,0.7916]
[1740321752978,5.24,2795.4,2794.5,0.7916]
[1740321753294,5.24,2795.4,2794.7,0.7916]
[1740321753698,5.24,2795.4,2794.8,0.04100705]
[1740321754128,5.24,2795.4,2794.7,0.7916]
[1740321754541,5.24,2795.4,2794.8,0.04100705]
[1740321754697,5.24,2795.5,2794.9,0.7916]
[1740321755588,5.595,2795.7,2794.9,0.7916]
[1740321758235,5.24,2795.7,2794.9,0.7916]
[1740321758449,5.24,2795.7,2795.0,0.04038884]
[1740321758589,5.24,2795.7,2795.1,0.7916]
[1740321758787,5.24,2795.7,2795.2,0.04004115]
[1740321758989,5.24,2796.0,2795.2,0.04004115]
[1740321759233,0.879,2795.9,2795.3,0.7916]
[1740321759445,5.24,2796.0,2795.3,0.7916]
[1740321759718,5.24,2796.0,2795.4,0.04004115]
[1740321764153,5.24,2796.0,2795.3,0.7916]
[1740321764950,5.24,2796.1,2795.4,0.03982871]
[1740321765817,5.24,2796.0,2795.5,0.7824]
[1740321766021,5.24,2796.7,2795.6,3.0]
[1740321766356,3.29369662,2796.9,2795.8,0.7824]
[1740321766851,0.55,2796.8,2795.9,0.03981905]
[1740321767052,5.24,2796.7,2795.4,0.7824]
[1740321767256,5.24,2796.7,2795.5,0.31257611]
[1740321767457,5.24,2796.7,2795.6,0.7824]
[1740321768053,5.24,2796.7,2795.7,0.03981905]
[1740321768262,5.24,2796.7,2795.8,0.7824]
[1740321768568,5.24,2796.7,2796.0,0.8115]
[1740321769060,5.24,2796.7,2796.1,0.03981905]
[1740321769267,5.24,2796.7,2796.2,0.5115]
[1740321769667,5.24,2796.7,2796.3,0.03981905]
[1740321770057,5.24,2796.7,2796.2,0.5115]
[1740321770225,5.24,2796.7,2796.3,0.03981905]
[1740321770431,5.24,2796.7,2796.2,0.5115]
[1740321770625,5.24,2797.0,2796.2,0.5115]
[1740321770830,5.24,2797.0,2796.3,0.03981905]
[1740321771556,3.29369662,2796.9,2795.5,3.64945598]
[1740321771869,3.29369662,2796.9,2795.6,0.03862209]
[1740321772231,3.29369662,2796.9,2795.7,0.8115]
[1740321772654,3.29369662,2796.9,2795.8,0.03862209]
[1740321772853,6.09336966,2797.0,2795.8,0.8115]
[1740321773063,6.09336966,2797.0,2796.0,0.8115]
[1740321773432,0.96580663,2796.9,2796.1,0.03862209]
[1740321773765,5.24,2796.8,2796.1,0.03862209]
[1740321774467,5.24,2796.8,2796.2,0.8115]
[1740321774768,5.24,2796.8,2796.2,0.84992566]
[1740321775143,5.24,2796.8,2796.2,0.8115]
[1740321776463,5.764,2796.8,2796.2,0.8115]
[1740321776676,9.05769662,2796.8,2796.2,0.8115]
[1740321779651,5.24,2796.7,2796.2,0.8115]
[1740321782376,3.29369662,2796.4,2795.1,0.8115]
[1740321782543,5.24,2796.3,2795.1,0.8115]
[1740321782748,5.24,2796.3,2795.3,0.8115]
[1740321783078,6.09336966,2796.3,2795.3,0.8115]
[1740321783252,6.09336966,2796.3,2795.4,0.03604634]
[1740321783581,6.09336966,2796.3,2795.5,0.8115]
[1740321783951,5.24,2796.3,2795.5,0.8115]
[1740321784173,5.24,2796.3,2795.7,0.7944]
[1740321784487,5.24,2796.5,2795.8,0.0362778]
[1740321784786,5.24,2796.5,2795.9,0.7944]
[1740321785686,5.24,2796.5,2796.1,0.7944]
[1740321785902,5.24,2797.2,2796.1,0.7944]
[1740321786103,6.20248966,2797.2,2796.1,0.7944]
[1740321786256,6.20248966,2797.2,2796.2,0.03617171]
[1740321786450,6.20248966,2797.2,2796.3,0.7944]
[1740321786651,3.55,2797.1,2796.3,0.7944]
[1740321788189,3.82,2797.1,2796.3,0.7944]
[1740321788389,1.00224897,2797.0,2796.3,0.7944]
[1740321791075,4.29594559,2797.0,2796.3,0.7944]
[1740321791710,5.24,2796.9,2796.3,0.7944]
[1740321799818,5.24,2796.9,2796.5,0.7701]
[1740321801094,5.24,2796.9,2796.7,0.7701]
[1740321801295,5.24,2797.1,2796.7,0.7701]
[1740321801617,5.24,2797.1,2796.8,0.03604637]
[1740321802113,5.24,2797.1,2796.7,0.7701]
[1740321802418,5.24,2797.1,2796.9,0.03604637]
[1740321802823,5.24,2797.1,2796.7,0.7701]
[1740321803119,5.24,2797.1,2796.8,0.03604637]
[1740321803321,5.24,2797.1,2796.7,0.7701]
[1740321803543,5.24,2797.1,2796.9,0.03604637]
[1740321803699,5.24,2797.1,2796.7,0.7701]
[1740321806092,5.24,2797.1,2796.8,0.03587276]
[1740321806426,5.24,2797.1,2796.7,0.7701]
[1740321806427,0.55,2796.9,2795.9,0.8082]
[1740321806644,8.53369662,2796.8,2795.9,0.8082]
[1740321807829,5.24,2796.8,2795.9,0.8082]
[1740321808238,5.24,2796.8,2796.1,0.8082]
[1740321808947,5.24,2796.8,2796.3,0.7946]
[1740321809504,5.24,2796.8,2796.4,0.03456611]
[1740321810743,5.24,2796.8,2796.3,0.7946]
[1740321812644,5.24,2796.9,2796.3,0.7946]
[1740321815847,5.24,2796.9,2796.4,0.03456611]
[1740321818359,5.24,2797.1,2796.4,0.03456611]
[1740321819753,5.24,2797.1,2796.3,0.7946]
[1740321820932,5.24,2797.1,2796.4,0.03472039]
[1740321823965,5.24,2797.2,2796.5,0.8196]
[1740321824167,5.24,2797.5,2796.5,0.8196]
[1740321824470,0.269,2798.2,2796.8,0.8196]
[1740321824630,5.24,2798.1,2796.8,0.8196]